Cogmind - Beta 11 X5 @@@ ROGUE MODE // 2021.07.01 @ 17:02:34 Player: alice_fexa Result: Destroyed by as-44215 with Assembled Rifle Performance ------------- Evolutions (0) 0 Regions Visited (2) 400 Robots Destroyed (20) 100 Value Destroyed (606) 606 Prototype IDs (2) 40 Alien Tech Used (0) 0 Bonus (0) 0 TOTAL SCORE: 1146 Bonus ------- None Cogmind --------- Core Integrity 0/250 Matter 285/300 Energy 140/140 System Corruption 2% Temperature Warm (117) Movement Treading (360) Ox2 Location -10/Mines Parts ------- > --- POWER (1) -------- Light Deuterium Engine > --- PROPULSION (2) --- Light Treads Compact Wheel > --- UTILITY (2) ------ High-capacity Storage Unit > --- WEAPON (2) ------- Particle Gun Assault Rifle > --- INVENTORY (20) --- Light Deuterium Engine Light Nuclear Core Combat Airjet Combat Airjet Heat Sink Improved Heat Sink EM Pulse Gun EM Pulse Gun Small Laser Small Laser Small Laser Small Laser Small Laser Small Laser Assault Rifle Light Assault Rifle Light Assault Rifle Peak State ------------ > --- POWER ------------ Light Deuterium Engine > --- PROPULSION ------- Light Treads Wheel > --- UTILITY ---------- Improved Heat Sink High-capacity Storage Unit > --- WEAPON ----------- Particle Gun Assault Rifle > --- INVENTORY -------- Ion Engine Light Nuclear Core Light Treads Compact Wheel Combat Airjet Combat Airjet Heat Sink Heat Sink Improved Heat Sink EM Pulse Gun EM Pulse Gun Small Laser Small Laser Small Laser Small Laser Small Laser Small Laser Assault Rifle Light Assault Rifle Light Assault Rifle [Rating: 15] Favorites ----------- Power Ion Engine Engine Ion Engine Propulsion Light Treads Treads Light Treads Wheel Compact Wheel Utility Improved Heat Sink Device Improved Heat Sink Storage High-capacity Storage Unit Weapon Particle Gun Energy Gun Particle Gun Ballistic Gun Assault Rifle Build | -11 -10 -10 ------- Run | Scr Mat Min Slots Evolved . | . . . Power . | . . . Propulsion . | . . . Utility . | . . . Weapon . | . . . Parts Attached 32 | 6 20 6 Power 9 | 1 7 1 Engine 9 | 1 7 1 Core . | . . . Reactor . | . . . Propulsion 8 | 2 3 3 Treads 3 | 1 1 1 Leg . | . . . Wheel 5 | 1 2 2 Hover . | . . . Flight . | . . . Utility 5 | 1 3 1 Device 3 | . 2 1 Storage 2 | 1 1 . Processor . | . . . Hackware . | . . . Protection . | . . . Artifact . | . . . Weapon 10 | 2 7 1 Energy Gun 7 | 2 5 . Energy Cannon . | . . . Ballistic Gun 3 | . 2 1 Ballistic Cannon . | . . . Launcher . | . . . Special Weapon . | . . . Impact Weapon . | . . . Slashing Weapon . | . . . Piercing Weapon . | . . . Special Melee Weapon . | . . . Unidentified Prototypes . | . . . Corrupted Parts 1 | . 1 . System Corruption 2 | . 2 . Parts Lost 6 | . 1 5 Power . | . . . Propulsion 2 | . . 2 Utility 2 | . . 2 Weapon 2 | . 1 1 Highest Loss Streak 3 | . 1 3 Average Slot Usage (%) 98 | . 98 97 Engine 14 | . 14 14 Treads 13 | . 14 13 Wheel 14 | . 14 14 Device 12 | . 12 12 Storage 14 | . 14 14 Energy Gun 16 | . 16 14 Ballistic Gun 11 | . 11 14 Naked Turns . | . . . Heaviest Build 54 | 11 54 51 Greatest Support 16 | 16 16 16 Greatest Overweight (x) 5 | . 5 5 Average Overweight (x) 2 | . 1 4 Largest Inventory Capacity 20 | 8 20 20 Average Capacity 16 | 6 15 20 Most Carried 20 | 4 20 20 Average Carried 13 | 2 11 19 Final Capacity 20 | 8 20 20 Final Carried 20 | 4 20 17 Class Distribution -------------------- 74% | Mutant 25% | Scavenger-Mutant Dominant Class ---------------- Mutant | -10/Materials Scavenger-Mutant | -10/Mines Resources | -11 -10 -10 ----------- Run | Scr Mat Min Matter Collected 646 | 210 290 146 Remotely . | . . . Salvage Created 924 | . 639 285 Parts 46 | . 35 11 Haulers Intercepted 1 | . 1 . Recyclers Shooed 1 | . 1 . Parts Field Recycled . | . . . Retrieved Matter . | . . . Parts Self-Destructed . | . . . Prevented . | . . . Kills | -11 -10 -10 ------- Run | Scr Mat Min Combat Hostiles Destroyed 24 | . 12 12 Guns 24 | . 12 12 Classes Destroyed 7 | . 5 2 Worker 1 | . 1 . Builder 1 | . . 1 Tunneler 1 | . 1 . Hauler 1 | . 1 . Recycler 1 | . 1 . Grunt 15 | . 12 3 Assembled 9 | . . 9 Best Kill Streak 5 | . 5 3 Combat Bots Only 4 | . 4 2 Max Kills in Single Turn 2 | . 1 2 Gunslinging 1 | . . 1 Exploded . | . . . Melee . | . . . Uniques/NPCs Destroyed . | . . . Combat | -11 -10 -10 -------- Run | Scr Mat Min Damage Taken 1211 | . 460 751 Core 261 | . 87 174 Absorbed by Shields . | . . . Core Remaining (%) 100 | 100 . . Volleys Fired 92 | . 61 31 Largest 2 | . 2 2 Hottest 85 | . 85 85 Shots Fired 178 | . 116 62 Gun 178 | . 116 62 Cannon . | . . . Launcher . | . . . Special . | . . . Kinetic 79 | . 48 31 Thermal 87 | . 56 31 Explosive . | . . . Electromagnetic 12 | . 12 . Robot Hit Streak 13 | . 13 8 Robot Miss Streak 4 | . 4 4 Penetration Max . | . . . Secondary Targets 6 | . 3 3 Max Gunslinging Chain 1 | . 1 1 Shots Hit Robots 114 | . 79 35 Core Hits 58 | . 33 25 Critical Kills . | . . . Critical Parts Destroyed . | . . . Critical Strikes 1 | . 1 . Corrupt 1 | . 1 . Melee Attacks . | . . . Impact . | . . . Slashing . | . . . Piercing . | . . . Sneak Attacks . | . . . Combat Hostiles . | . . . Follow-up Attacks . | . . . Damage Inflicted 1494 | . 974 520 Guns 1494 | . 974 520 Cannons . | . . . Explosions . | . . . Melee . | . . . Ramming . | . . . Kinetic 503 | . 321 182 Thermal 909 | . 571 338 Explosive . | . . . Electromagnetic 82 | . 82 . Impact . | . . . Slashing . | . . . Piercing . | . . . Highest Corruption 2 | . 2 2 Average Corruption 2 | . 2 2 Corruption Purged . | . . . Effects 15 | . 11 4 Message Errors 4 | . 3 1 Heat Flow Errors 3 | . 2 1 Energy Discharges 3 | . 2 1 Data Loss (minor) 3 | . 2 1 Weapon Failures 2 | . 2 . Overload Shots . | . . . Overflow Damage . | . . . Projectiles . | . . . Explosions . | . . . Melee . | . . . Knockbacks . | . . . Impact . | . . . Kinetic . | . . . Secondary . | . . . Self-Inflicted Damage . | . . . Shots . | . . . Rammed . | . . . Targets Rammed . | . . . Kicked . | . . . Crushed . | . . . Highest Temperature 227 | . 227 121 Average Temperature 52 | . 53 50 Received Heat Transfer 443 | . 276 167 Siege Activations . | . . . Robots Corrupted . | . . . Combat Hostiles . | . . . Parts Fried . | . . . Impact Corruptions . | . . . Robots Melted . | . . . Combat Hostiles . | . . . Parts Melted 2 | . 2 . Heat Transferred 2089 | . 1312 777 Parts Sabotaged . | . . . Parts Stolen . | . . . Parts Stripped . | . . . Power Chain Reactions . | . . . Missiles Intercepted . | . . . Alert | -11 -10 -10 ------- Run | Scr Mat Min Peak Influence 189 | . 189 133 Initial 23 | . . 23 Average 73 | . 60 118 Maximum Alert Level . | . . . Low Security (%) 100 | 100 100 100 Level 1 . | . . . Level 2 . | . . . Level 3 . | . . . Level 4 . | . . . Level 5 . | . . . High Security . | . . . Max Security . | . . . Squads Dispatched 4 | . 4 . Investigation 2 | . 2 . Extermination . | . . . Reinforcement 2 | . 2 . Assault . | . . . Garrison . | . . . Intercept . | . . . Construction Impeded . | . . . Haulers Reinforced . | . . . Cargo Convoy Interrupts . | . . . Stealth | -11 -10 -10 --------- Run | Scr Mat Min Distress Signals 1 | . 1 . Communications Jammed . | . . . Distress Signals . | . . . Times Spotted 42 | . 25 17 Peak Tracking Total 6 | . 6 4 Tactical Retreats 3 | . 2 1 Traps | -11 -10 -10 ------- Run | Scr Mat Min Traps Triggered 2 | . 2 . Indirectly . | . . . Trap Hack Attempts . | . . . Triggered . | . . . Disarmed 3 | . 3 . Reprogrammed . | . . . Reused . | . . . Traps Extracted . | . . . Installed . | . . . Triggered . | . . . Machines | -11 -10 -10 ---------- Run | Scr Mat Min Machines Disabled 2 | . 1 1 Max in Single Turn 1 | . 1 1 Machines Sabotaged . | . . . Garrisons Compromised . | . . . Overloaded Fab Kills . | . . . Fab Network Shutdowns . | . . . Hacking | -11 -10 -10 --------- Run | Scr Mat Min Machines Accessed 7 | . 7 . Terminals 6 | . 6 . Fabricators . | . . . Repair Stations 1 | . 1 . Recycling Units . | . . . Scanalyzers . | . . . Garrison Access . | . . . Total Hacks 23 | . 23 . Successful 16 | . 16 . Failed 6 | . 6 . Catastrophic 1 | . 1 . Database Lockouts 1 | . 1 . Manual 15 | . 15 . Terminals 21 | . 21 . Fabricators . | . . . Repair Stations 2 | . 2 . Recycling Units . | . . . Scanalyzers . | . . . Garrison Access . | . . . Terminal Hacks 11 | . 11 . Prototype ID Bank 1 | . 1 . Alert Level 1 | . 1 . Unreport Threat 2 | . 2 . Locate Traps 3 | . 3 . Disarm Traps 1 | . 1 . Recall Investigation 1 | . 1 . Zone Layout 2 | . 2 . Fabricator Hacks . | . . . Repair Station Hacks 2 | . 2 . Scan Component 1 | . 1 . Repair 1 | . 1 . Recycling Unit Hacks . | . . . Scanalyzer . | . . . Garrison Access Hacks . | . . . Unauthorized Hacks 3 | . 3 . Terminals 3 | . 3 . Botnet 3 | . 3 . Fabricators . | . . . Repair Stations . | . . . Recycling Units . | . . . Scanalyzers . | . . . Garrison Access . | . . . Data Cores Recovered . | . . . Used . | . . . Hacking Detections 5 | . 5 . Full Trace Events . | . . . Feedback Events . | . . . Feedback Blocked . | . . . Robot Schematics Acquired . | . . . Robots Built . | . . . Matter . | . . . Time . | . . . Total Robot Build Rating . | . . . Part Schematics Acquired . | . . . Parts Built . | . . . Matter . | . . . Time . | . . . Total Part Build Rating . | . . . Parts Repaired 1 | . 1 . Time 38 | . 38 . Parts Recycled . | . . . Recycled Matter . | . . . Retrieved Matter . | . . . Retrieved Components . | . . . Parts Scanalyzed . | . . . Part Schematics Acquired . | . . . Parts Damaged . | . . . Bothacking | -11 -10 -10 ------------ Run | Scr Mat Min Used RIF Installer . | . . . Robots Hacked . | . . . Non-combat . | . . . Combat . | . . . Robot Hacks Applied . | . . . Relay Couplers Released . | . . . Robots Rewired . | . . . Allies Hacked . | . . . Hacks Repelled . | . . . Allies | -11 -10 -10 -------- Run | Scr Mat Min Total Allies . | . . . Largest Group . | . . . Highest-Rated Group . | . . . Highest-Rated Ally . | . . . Total Orders . | . . . Ally Attacks . | . . . Total Damage . | . . . Kills . | . . . Allies Corrupted . | . . . Allies Melted . | . . . Intel | -11 -10 -10 ------- Run | Scr Mat Min Robot Analysis Total . | . . . Derelict Logs Recovered . | . . . Drone Launches . | . . . Drone Recoveries . | . . . Exploration | -11 -10 -10 ------------- Run | Scr Mat Min Turns Passed 1520 | 48 1083 389 Spaces Moved 819 | 36 600 183 Core 2 | 2 . . Treads . | . . . Legs . | . . . Wheels 817 | 34 600 183 Hover . | . . . Flight . | . . . Fastest Speed 50 | 50 100 140 Average Speed 130 | 97 125 154 Slowest Speed 155 | 100 155 155 Overloaded Moves . | . . . Propulsion Burnouts . | . . . Robots Hopped . | . . . Cave-ins Triggered . | . . . Exploration Rate (%) 41 | 3 96 25 Regions Visited 2 Branch Regions 1 Pre-discovered Areas . | . . . Known Exits Taken . | . . . Unknown Exits Taken 2 | 1 1 . Scrap Searched . | . . . Spaces Dug . | . . . Terrain Destroyed . | . . . Melee . | . . . Projectile . | . . . AOE . | . . . Terrain Rammed . | . . . Walls Destroyed . | . . . Machines Disabled . | . . . Actions | -11 -10 -10 --------- Run | Scr Mat Min Total 1102 | 45 824 233 Wait 100 | . 98 2 Move 817 | 35 599 183 Hop . | . . . Pick Up 34 | 4 25 5 Fast Attach 15 | 6 8 1 Attach 5 | . 1 4 Detach 1 | . 1 . Swap 12 | . 11 1 Drop 26 | . 20 6 Fire 92 | . 61 31 Melee . | . . . Ram . | . . . Kick . | . . . Crush . | . . . Escape Stasis . | . . . Rewire . | . . . Trap . | . . . Miscellaneous . | . . . Route ------- -11/Scrapyard -10/Materials (discovered 5 exits: [*Mat x3] / [*Min x2]) -10/Mines (discovered 1 exit: [*Mat]) History --------- Turn | Location | Event 22 | -11/Scrapyard | Discovered new exit (range 15) 49 | -11/Scrapyard | Entered Materials 221 | -10/Materials | Discovered new exit (range 8) 315 | -10/Materials | Build established: Mutant 472 | -10/Materials | Repaired Imp. Heat Sink 536 | -10/Materials | Discovered new exit (range 5) 545 | -10/Materials | Central database locked down 634 | -10/Materials | Discovered new exit (range 15) 667 | -10/Materials | Discovered new exit (range 15) 902 | -10/Materials | Discovered new exit (range 13) 1132 | -10/Materials | Entered Mines 1177 | -10/Mines | Assembled infested the area 1182 | -10/Mines | Assisted by a Guerilla fighting off Assembled 1197 | -10/Mines | Core integrity fell below 50% 1365 | -10/Mines | Discovered new exit (range 10) 1391 | -10/Mines | Build established: Scavenger-Mutant 1480 | -10/Mines | Core integrity fell below 20% 1513 | -10/Mines | Lost 3 parts (2n1u) 1521 | -10/Mines | Destroyed by as-44215 with Assembled Rifle Last Messages --------------- 01432_ Acquired 8 matter. 01434_ Acquired 9 matter. 01454_ as-06708 destroyed. 01457_ System corrupted: Component data lost. 01457_ Acquired 6 matter. 01461_ U-05 Engineer builds a Wall. 01473_ K-01 Serf destroyed. 01474_ Seismic Survey Station disabled. 01480_ Wheel destroyed. 01482_ Heat Sink destroyed. 01482_ Lgt. Treads destroyed. 01488_ as-86933 destroyed. 01488_ Switching to secondary target: as-77174. 01494_ as-77174 destroyed. 01498_ Acquired 18 matter. 01501_ Acquired 2 matter. 01505_ System corrupted: Energy discharge (-46). 01517_ Destroyed Asb. Hover Unit. 01517_ as-69556 destroyed. 01520_ 0SAYQDHGM2 3DYN7IY LK Map ----- +----------------------------------------------------+ | ?????????????????????????????????????????????????? | | ?????????????????????????????????????????????????? | | ?????????????????????????????????????????????????? | | ?????????????????????????????????????????????????? | | ?????????????????????????????????????????????????? | | ?????????????????????????????????????????????????? | | ?????????????????????????????????????????????????? | | ?????????????????????????????????????????????????? | | ?????????????????????????????????????????????????? | | ?????????????????????????????????????????????????? | | ?????????????????????????????????????????????????? | | ?????????????????????????????????????????????????? | | ?????????????????????????????????????????????????? | | ?????????????????????????????????????????????????? | | ?????????????????????????????????????????????????? | | ?????????????????????????????????????????????????? | | ???????####??????????????????????????????????????? | | ????#### ##?????????????????????????????????????? | | ???## ########??????????????????????????????? | | ???# #??????????????????????????????? | | ??## ## #??????????????????????????????? | | ?## ##### #??????????????????????????????? | | ?# #???## ##?????????###### ##???????????? | | ## ##????# % #?????????# ###?????????? | | # ##?????# %*! #????###### "" = #??????? | | # ##?????##!%= ######@% %a """ #??????? | | # ##?????##|* ## # #### """ ######??????? | | ## ###????## ## #%# ## #???????????? | | ?### ##????## % # #%## #########???????????? | | ???## #????##%% =### # #???????????????????? | | ????# #????# !%! # #???????????????????? | | ????# ##???## * ### # #???????????????????? | | ????# #???##%= ### ## #???????????????????? | | ????# #???#=! %% ### # ##???????????????????? | | ????## ##???# # #*# #????????????????????? | | ?????#####????## =#!#%# #????????????????????? | | ???????????????## %###*######### < #???????? | | ??########??????## %=*! % % % ""#??????? | | ??# ######### %== % #?????????? | | ??# ! #=##### ### ##?????????? | | ??# ####????###?????"#?????????? | | ??# ! %##############??????????????????????????? | | ??# """"*#???????????????????????????????????????? | | ??# """"%#???????????????????????????????????????? | | ??# """" #???????????????????????????????????????? | | ??########???????????????????????????????????????? | | ?????????????????????????????????????????????????? | | ?????????????????????????????????????????????????? | | ?????????????????????????????????????????????????? | | ?????????????????????????????????????????????????? | +----------------------------------------------------+ Best States ------------- Heat Dissipation 39 Energy Generation 14 Energy Capacity 250 Matter Stores 300 Matter Capacity 300 Sight Range 16 Terrain Scan Density 10 Evasion (%) 40 Recoil Reduction 1 Item Schematics ----------------- None Robot Schematics ------------------ None Fabricated ------------ Nothing Alien Tech Used ----------------- None Achievements -------------- None Challenges ------------ None Game ------ Seed MissileCoolantScrap Manual? 0 Play Time 00:09:24 Cumulative 1083.1 hours Start 2021.07.01 @ 16:23:31 End 2021.07.01 @ 17:02:34 Sessions 2 Manual Loads 0 Difficulty Rogue Special Mode None Game No. 823 Rogue 783 Adventurer 40 Explorer 0 Win Type - Total 122 Types 60/4/36/2/1/4/13/1/1 Lore% 93 Gallery% 97 Achievement% 80 Wizard Run 0 Options --------- ASCII 0 Keyboard 0 Movement Numpad Keybinds 0 Fullscreen 0 Font 20/Terminus Map View 76x50 Tactical HUD 1 Map Filters NONE Filters NONE Steam 1 RUN: 921f1a66-54db-46b5-b41e-0ae632f0807a